bitfinex/quotes_BTCUSD_20251217
["timestamp","ask_amount","ask_price","bid_price","bid_amount"]
[1765998749415,0.01872,85656.0,85628.0,0.05001839]
[1765998749416,0.69842,85656.0,85628.0,0.05001839]
[1765998749737,0.002,85649.0,85630.0,0.05001839]
[1765998749945,0.7694,85655.0,85630.0,0.05063125]
[1765998750165,0.7704,85655.0,85630.0,0.05063125]
[1765998750363,0.00248828,85647.0,85630.0,0.05063125]
[1765998750591,0.001,85647.0,85630.0,0.05063125]
[1765998750746,0.0019716,85631.0,85630.0,0.05063125]
[1765998751175,0.0019716,85631.0,85630.0,0.00061286]
[1765998751337,0.7694,85655.0,85630.0,0.01933286]
[1765998751338,0.52458,85655.0,85630.0,0.01933286]
[1765998751939,0.52458,85655.0,85630.0,0.00061286]
[1765998752568,0.01872,85656.0,85631.0,0.05001839]
[1765998752769,0.01872,85656.0,85631.0,0.05163126]
[1765998753177,0.06545076,85685.0,85639.0,0.06545076]
[1765998753178,0.002,85655.0,85639.0,0.06545076]
[1765998753373,0.6787,85669.0,85654.0,0.00161287]
[1765998754187,0.001,85655.0,85631.0,0.0907]
[1765998754387,0.001,85655.0,85643.0,0.05001839]
[1765998754587,0.001,85655.0,85643.0,0.05163126]
[1765998754791,0.52458,85653.0,85643.0,0.00161287]
[1765998754990,0.001,85655.0,85632.0,0.05001839]
[1765998754991,1.20328,85651.0,85632.0,0.05001839]
[1765998755192,1.20328,85652.0,85632.0,0.05001839]
[1765998755419,0.52458,85650.0,85632.0,0.05001839]
[1765998755591,0.52458,85650.0,85615.0,0.0907]
[1765998755592,1.20328,85646.0,85627.0,0.01872]
[1765998755993,0.6787,85646.0,85628.0,0.05001839]
[1765998756831,0.6787,85646.0,85618.0,0.05001839]
[1765998757034,0.6787,85646.0,85627.0,0.05001839]
[1765998757231,0.52458,85644.0,85626.0,0.05001839]
[1765998757494,0.01872,85663.0,85626.0,0.05001839]
[1765998757694,0.02955263,85662.0,85621.0,0.01872]
[1765998757902,0.6787,85657.0,85622.0,0.05001839]
[1765998758105,0.6787,85657.0,85606.0,0.47485]
[1765998758106,0.52458,85655.0,85619.0,0.01872]
[1765998758252,0.0907,85652.0,85620.0,0.05001839]
[1765998758437,1.20328,85650.0,85620.0,0.05001839]
[1765998758637,0.02914915,85649.0,85620.0,0.05001839]
[1765998758858,0.02914915,85649.0,85598.0,0.00181648]
[1765998758859,0.00025841,85647.0,85598.0,0.00181648]
[1765998759062,0.00025841,85647.0,85608.0,0.01872]
[1765998759063,1.20328,85644.0,85608.0,0.01872]
[1765998759379,0.0907,85639.0,85608.0,0.01872]
[1765998759706,0.52458,85635.0,85608.0,0.01872]
[1765998759843,0.10153263,85634.0,85598.0,0.00181648]
[1765998760049,0.52458,85632.0,85599.0,0.06545076]
[1765998760256,0.0907,85627.0,85599.0,0.06545076]
[1765998760458,0.01083263,85626.0,85602.0,0.47485]
[1765998760678,1.20328,85636.0,85613.0,0.05001839]
[1765998761008,0.6787,85636.0,85615.0,0.05001839]
[1765998761224,0.68031,85636.0,85615.0,0.05001839]
[1765998761772,0.00161,85636.0,85615.0,0.12928839]
[1765998761975,0.002,85634.0,85616.0,0.05001839]
[1765998762201,0.00161,85636.0,85616.0,0.06169844]
[1765998762365,0.00161,85636.0,85616.0,0.05001839]
[1765998762720,0.00161,85636.0,85616.0,0.55990839]
[1765998762920,0.00161,85636.0,85626.0,0.05001839]
[1765998763126,0.00161,85636.0,85628.0,0.05001839]
[1765998764716,0.00161,85636.0,85628.0,0.04896487]
[1765998764922,0.10942,85654.0,85627.0,0.01872]
[1765998765099,0.00186841,85647.0,85624.0,0.01872]
[1765998765302,0.00186841,85647.0,85620.0,0.01872]
[1765998765686,0.00186841,85647.0,85612.0,0.06545076]
[1765998765897,0.00186841,85647.0,85613.0,0.01872]
[1765998766319,0.00186841,85647.0,85595.0,0.50989]
[1765998766320,0.0907,85645.0,85595.0,0.50989]
[1765998766523,0.02013639,85644.0,85600.0,0.01872]
[1765998766750,0.70088,85638.0,85584.0,0.07927]
[1765998766967,0.59201,85631.0,85589.0,0.01872]
[1765998767306,0.01087955,85630.0,85582.0,1.0]
[1765998767485,0.01087955,85629.0,85584.0,0.05001839]
[1765998767731,0.01087955,85629.0,85583.0,0.01872]
[1765998767732,0.79158,85626.0,85583.0,0.01872]
[1765998767879,0.0907,85623.0,85583.0,0.01872]
[1765998768079,0.02959955,85622.0,85584.0,0.05001839]
[1765998768284,1.20219,85617.0,85584.0,0.05001839]
[1765998768539,0.01087955,85616.0,85583.0,0.01872]
[1765998768740,0.50131,85610.0,85583.0,0.01872]
[1765998768973,0.50131,85607.0,85584.0,0.05001839]
[1765998769178,0.71175955,85606.0,85584.0,0.05001839]
[1765998769493,0.01087955,85605.0,85584.0,0.05001839]
[1765998769695,0.50131,85619.0,85583.0,0.05001839]
[1765998769830,0.0907,85616.0,85586.0,0.05001839]
[1765998770031,0.0907,85618.0,85586.0,0.05001839]
[1765998770235,0.0907,85620.0,85586.0,0.05001839]
[1765998770575,0.02033,85622.0,85583.0,0.05001839]
[1765998770802,0.02033,85622.0,85586.0,0.01872]
[1765998770988,0.50131,85617.0,85586.0,0.01872]
[1765998771163,0.02033,85622.0,85586.0,0.01872]
[1765998771164,0.50131,85621.0,85586.0,0.01872]
[1765998771374,0.50131,85621.0,85564.0,0.50989]
[1765998771375,0.50131,85619.0,85564.0,0.50989]
[1765998771571,0.03338062,85621.0,85577.0,0.06545076]
[1765998771572,0.79158,85616.0,85577.0,0.06545076]
[1765998771772,0.02233,85622.0,85577.0,0.06545076]
[1765998771980,0.0907,85620.0,85570.0,0.0907]
[1765998772316,0.50131,85617.0,85569.0,1.0]
[1765998772516,0.02033,85622.0,85545.0,1.0]
[1765998772517,1.20219,85611.0,85545.0,1.0]
[1765998772728,0.0907,85612.0,85544.0,0.76588]
[1765998772729,1.0,85609.0,85546.0,0.01872]
[1765998772945,0.0907,85604.0,85548.0,0.0907]
[1765998773151,0.0907,85591.0,85542.0,0.0002]
[1765998773365,0.59201,85587.0,85543.0,0.01872]
[1765998773572,0.01872,85590.0,85542.0,0.0002]
[1765998773573,0.50131,85573.0,85542.0,0.0002]
[1765998773779,0.0907,85567.0,85522.0,1.0]
[1765998774004,1.20219,85569.0,85525.0,0.01872]
[1765998774219,0.0907,85568.0,85525.0,0.01872]
[1765998774425,0.0907,85564.0,85525.0,0.01872]
[1765998774630,0.0907,85570.0,85525.0,0.01872]
[1765998774853,0.70088,85569.0,85525.0,0.01872]
[1765998775058,0.0907,85570.0,85526.0,0.05001839]
[1765998775316,0.01872,85572.0,85525.0,0.01872]
[1765998775317,0.0907,85565.0,85525.0,0.01872]
[1765998775722,0.70088,85562.0,85525.0,0.01872]
[1765998775925,0.50131,85551.0,85526.0,0.05001839]
[1765998776133,0.50131,85547.0,85526.0,0.05001839]
[1765998776337,0.50131,85547.0,85514.0,0.01169399]
[1765998776338,0.50131,85541.0,85515.0,0.0907]
[1765998776555,0.70088,85539.0,85516.0,0.05001839]
[1765998776757,0.01872,85551.0,85515.0,0.01872]
[1765998776758,0.70088,85537.0,85515.0,0.01872]
[1765998777166,0.50131,85537.0,85515.0,0.01872]
[1765998777364,0.70088,85536.0,85516.0,0.05001839]
[1765998778991,0.70249,85536.0,85516.0,0.04901839]
[1765998779196,0.70249,85536.0,85507.0,0.76588]
[1765998779197,0.70088,85532.0,85506.0,0.01872]
[1765998779403,0.50131,85530.0,85506.0,0.01872]
[1765998779579,0.50292,85530.0,85506.0,0.01872]
[1765998780163,0.50292,85530.0,85512.0,0.06545076]
[1765998780369,0.00161,85530.0,85512.0,0.06545076]
[1765998780774,0.00161,85530.0,85516.0,0.001]
[1765998780974,0.00161,85530.0,85513.0,0.05001839]
[1765998781589,0.01872,85545.0,85525.0,0.06545076]
[1765998781786,0.70088,85546.0,85521.0,0.05001839]
[1765998781994,0.00161,85552.0,85528.0,0.05001839]
[1765998782213,0.00161,85552.0,85530.0,0.05001839]
[1765998782426,0.00161,85552.0,85532.0,0.05001839]
[1765998782691,0.70249,85552.0,85532.0,0.05001839]
[1765998782950,1.20219,85550.0,85532.0,0.05001839]
[1765998783335,0.00161,85552.0,85522.0,0.05001839]
[1765998783336,0.11546078,85549.0,85522.0,0.05001839]
[1765998783511,0.00161,85552.0,85522.0,0.05001839]
[1765998783690,0.00161,85552.0,85522.0,0.06873839]
[1765998784308,0.00161,85552.0,85513.0,0.05001839]
[1765998784540,0.00361,85552.0,85515.0,0.05001839]
[1765998784910,0.00161,85552.0,85515.0,0.05001839]
[1765998785136,0.0907,85550.0,85514.0,0.01872]
[1765998785316,0.0907,85548.0,85515.0,0.05001839]
[1765998785510,0.009231,85549.0,85515.0,0.05001839]
[1765998785796,0.50131,85549.0,85515.0,0.05001839]
[1765998786111,1.29289,85546.0,85517.0,0.55990839]
[1765998786316,0.70088,85543.0,85517.0,0.55990839]
[1765998786630,1.20219,85543.0,85517.0,0.55990839]
[1765998786837,0.0907,85546.0,85517.0,0.55990839]
[1765998787045,0.10942,85546.0,85517.0,0.55990839]
[1765998787241,1.20219,85545.0,85517.0,0.55990839]
[1765998788221,0.01994969,85552.0,85525.0,0.06545076]
[1765998788222,0.70088,85544.0,85525.0,0.06545076]
[1765998788399,0.01872,85547.0,85526.0,0.05001839]
[1765998788627,0.001,85545.0,85526.0,0.05001839]
[1765998788830,0.00161,85552.0,85529.0,0.05001839]
[1765998789036,0.00161,85552.0,85539.0,0.05001839]
[1765998789245,0.50131,85561.0,85539.0,0.05001839]
[1765998789464,0.01872,85568.0,85542.0,0.50989]
[1765998789682,0.70088,85574.0,85549.0,0.50989]
[1765998789882,0.01872,85581.0,85555.0,0.05001839]
[1765998790103,0.01872,85581.0,85558.0,0.05001839]
[1765998790534,0.50131,85579.0,85558.0,0.05001839]
[1765998790740,0.0907,85578.0,85558.0,0.05001839]
[1765998790940,0.68947554,85575.0,85558.0,0.05001839]
[1765998791166,0.73539,85573.0,85553.0,0.05001839]
[1765998791486,0.73539,85573.0,85558.0,0.001]
[1765998791695,0.73539,85573.0,85553.0,0.05001839]
[1765998792090,0.00178554,85575.0,85553.0,0.05001839]
[1765998792292,0.00178554,85575.0,85555.0,0.53852839]
[1765998792537,1.25525,85574.0,85555.0,0.05001839]
[1765998792736,0.73539,85572.0,85553.0,0.05001839]
[1765998793117,0.737,85572.0,85553.0,0.05001839]
[1765998793653,0.737,85572.0,85558.0,0.001]
[1765998793858,0.737,85572.0,85553.0,0.05001839]
[1765998794123,0.73539,85570.0,85538.0,0.06545076]
[1765998794305,0.0907,85567.0,85522.0,0.48851]
[1765998794507,0.0907,85567.0,85512.0,0.07714502]
[1765998794508,0.0907,85564.0,85518.0,0.01872]
[1765998794716,0.61056,85561.0,85518.0,0.01872]
[1765998794921,0.73539,85551.0,85518.0,0.01872]
[1765998795135,0.51986,85544.0,85519.0,0.05001839]
[1765998795345,1.25525,85542.0,85519.0,0.05001839]
[1765998795760,1.25525,85542.0,85518.0,0.01872]
[1765998795974,1.25686,85542.0,85518.0,0.01872]
[1765998796179,1.25525,85541.0,85518.0,0.01872]
[1765998796389,0.73539,85539.0,85518.0,0.01872]
[1765998796792,0.73539,85539.0,85519.0,0.05001839]
[1765998797230,0.00161,85541.0,85525.0,0.06545076]
[1765998797446,0.0907,85560.0,85529.0,0.48851]
[1765998797655,0.01872,85553.0,85530.0,0.05001839]
[1765998797836,0.74627687,85552.0,85530.0,0.05001839]
[1765998798120,0.01088687,85551.0,85530.0,0.05001839]
[1765998798319,0.001,85541.0,85530.0,0.05001839]
[1765998798651,0.01088687,85551.0,85531.0,0.05001839]
[1765998798878,0.01088687,85550.0,85531.0,0.05001839]
[1765998799128,0.01088687,85549.0,85531.0,0.05001839]
[1765998799338,0.01088687,85548.0,85540.0,0.05001839]
[1765998799538,0.01088687,85548.0,85539.0,0.06545076]
[1765998799539,0.73539,85573.0,85547.0,0.25599]
[1765998799766,0.73539,85573.0,85541.0,0.01872]
[1765998799767,1.25525,85582.0,85555.0,0.05001839]
[1765998800182,0.05874414,85610.0,85554.0,0.07713928]
[1765998800183,0.51986,85593.0,85564.0,0.48851]
[1765998800390,0.51986,85593.0,85563.0,0.23374562]
[1765998800391,0.73539,85598.0,85569.0,0.30600839]
[1765998800621,0.75411,85609.0,85574.0,0.05001839]
[1765998800757,0.75411,85609.0,85578.0,0.53852839]
[1765998800942,0.54019,85609.0,85582.0,0.05001839]
[1765998801140,0.73539,85608.0,85582.0,0.05001839]
[1765998801365,0.75572,85608.0,85582.0,0.05001839]
[1765998801611,0.73539,85607.0,85582.0,0.05001839]
[1765998801820,0.00161,85607.0,85580.0,0.05001839]
[1765998802102,0.82609,85601.0,85574.0,0.00026492]
[1765998802335,0.51986,85591.0,85574.0,0.00026492]
[1765998802464,0.51986,85589.0,85574.0,0.00026492]
[1765998802666,0.51986,85587.0,85574.0,0.00026492]
[1765998802871,0.73539,85584.0,85574.0,0.00026492]
[1765998803083,1.25525,85583.0,85574.0,4.92e-06]
[1765998803258,1.25525,85581.0,85574.0,4.92e-06]
[1765998803456,1.25686,85581.0,85574.0,4.92e-06]
[1765998803704,0.73539,85578.0,85574.0,4.92e-06]
[1765998803904,0.73539,85572.0,85554.0,0.05001839]
[1765998804108,0.737,85572.0,85554.0,0.05001839]
[1765998804317,0.00161,85572.0,85556.0,0.05001839]
[1765998804494,0.00161,85572.0,85558.0,0.05001839]
[1765998804931,0.00161,85572.0,85556.0,0.05001839]
[1765998804932,1.25525,85571.0,85556.0,0.05001839]
[1765998805132,0.73539,85570.0,85553.0,0.01872]
[1765998805356,0.51986,85568.0,85553.0,0.01872]
[1765998805574,0.51986,85568.0,85546.0,0.05001839]
[1765998805575,0.73539,85567.0,85546.0,0.05001839]
[1765998806948,0.57045353,85567.0,85546.0,0.05001839]
[1765998807553,0.57045353,85567.0,85556.0,0.001]
[1765998807758,0.57045353,85567.0,85544.0,0.05001839]
[1765998807957,0.57045353,85567.0,85546.0,0.05001839]
[1765998808117,0.57045353,85567.0,85546.0,0.05101839]
[1765998808481,0.57045353,85567.0,85546.0,0.05001839]
[1765998808614,0.00161,85572.0,85546.0,0.05001839]
[1765998808823,0.0907,85589.0,85556.0,0.05001839]
[1765998809016,0.0907,85587.0,85554.0,0.42093]
[1765998809230,0.82609,85586.0,85556.0,0.001]
[1765998809432,1.34595,85586.0,85556.0,0.001]
[1765998809639,0.51986,85595.0,85567.0,0.05001839]
[1765998809894,0.0907,85594.0,85569.0,0.05001839]
[1765998810216,0.11546078,85593.0,85569.0,0.05001839]
[1765998810419,0.0907,85594.0,85569.0,0.05001839]
[1765998810420,1.25525,85587.0,85569.0,0.05001839]
[1765998810556,0.73539,85593.0,85569.0,0.05001839]
[1765998810756,0.73539,85589.0,85569.0,0.05001839]
[1765998810961,1.25525,85589.0,85569.0,0.05001839]
[1765998811358,0.01090564,85588.0,85569.0,0.05001839]
[1765998811763,0.01090564,85587.0,85571.0,0.05001839]
[1765998811962,0.01090564,85586.0,85571.0,0.05001839]
[1765998812163,0.01090564,85585.0,85571.0,0.05001839]
[1765998812363,0.01090564,85584.0,85571.0,0.05001839]
[1765998812591,0.01090564,85583.0,85571.0,0.05001839]
[1765998812794,0.00161,85595.0,85571.0,0.05001839]
[1765998813052,0.01251431,85595.0,85576.0,0.05001839]
[1765998813242,0.00161,85595.0,85584.0,0.05001839]
[1765998813402,1.25525,85610.0,85584.0,0.05163126]
[1765998813403,0.10159997,85609.0,85584.0,0.05163126]
[1765998813605,0.01089997,85608.0,85584.0,0.05163126]
[1765998813801,0.0907,85607.0,85584.0,0.05163126]
[1765998814083,0.01089997,85606.0,85584.0,0.05163126]
[1765998814259,0.73539,85608.0,85584.0,0.05163126]
[1765998814260,0.01089997,85605.0,85584.0,0.05163126]
[1765998814499,0.01089997,85604.0,85584.0,0.05163126]
[1765998814614,0.01089997,85604.0,85570.0,0.06545076]
[1765998814615,0.51986,85600.0,85570.0,0.06545076]
[1765998814819,0.01987932,85615.0,85571.0,0.05001839]
[1765998814820,0.51986,85594.0,85571.0,0.05001839]
[1765998815064,1.25525,85592.0,85571.0,0.00161287]
[1765998815270,0.01089997,85593.0,85571.0,0.00161287]
[1765998815271,0.73539,85586.0,85571.0,0.00161287]
[1765998815469,0.01089997,85585.0,85571.0,0.00161287]
[1765998816045,0.01089997,85585.0,85574.0,0.05001839]
[1765998816250,0.0907,85598.0,85574.0,0.05163126]
[1765998817027,0.0891511,85622.0,85574.0,0.05163126]
[1765998817028,0.0907,85613.0,85574.0,0.05163126]
[1765998817176,0.0907,85609.0,85579.0,0.05001839]
[1765998817502,0.0907,85609.0,85583.0,0.05001839]
[1765998817674,0.0907,85609.0,85587.0,0.05001839]
[1765998817890,0.0907,85605.0,85587.0,0.00161287]
[1765998818060,0.73539,85605.0,85590.0,0.05001839]
[1765998818265,0.00155188,85615.0,85592.0,0.42093]
[1765998818464,0.00155188,85615.0,85592.0,0.42254287]
[1765998818868,0.00155188,85615.0,85593.0,0.05001839]
[1765998819163,0.00155188,85615.0,85600.0,0.01168224]
[1765998819382,0.04055825,85651.0,85599.0,0.47094839]
[1765998819383,0.73539,85645.0,85618.0,0.53852839]
[1765998819591,0.73539,85659.0,85618.0,0.05163126]
[1765998819788,0.73539,85659.0,85598.0,0.06545076]
[1765998819789,0.51986,85640.0,85609.0,0.05001839]
[1765998819990,0.51986,85640.0,85603.0,0.01872]
[1765998819991,0.73539,85629.0,85606.0,0.00025859]
[1765998820201,0.73539,85627.0,85606.0,0.00025859]
[1765998820408,0.00155729,85647.0,85607.0,0.05001839]
[1765998820409,0.01872,85637.0,85607.0,0.05001839]
[1765998820589,0.01872,85637.0,85616.0,0.05001839]
[1765998821035,0.01872,85637.0,85618.0,0.05001839]
[1765998821379,0.01872,85637.0,85616.0,0.05001839]
[1765998821605,0.57605,85635.0,85616.0,0.05001839]
[1765998821813,0.0907,85634.0,85616.0,0.05001839]
[1765998822020,0.0907,85634.0,85606.0,0.00025859]
[1765998822021,0.0907,85628.0,85606.0,0.00025859]
[1765998822191,1.21649,85625.0,85606.0,0.00025859]
[1765998822512,0.01872,85624.0,85606.0,0.00025859]
[1765998822687,1.21649,85622.0,85606.0,0.00025859]
[1765998822890,0.01872,85623.0,85606.0,0.00025859]
[1765998822891,1.21649,85618.0,85606.0,0.00025859]
[1765998823250,0.0907,85630.0,85606.0,0.00025859]
[1765998823532,0.0907,85630.0,85612.0,0.05001839]
[1765998824513,0.0907,85632.0,85612.0,0.05001839]
[1765998824828,0.73114,85634.0,85611.0,0.06545076]
[1765998824829,0.01872,85636.0,85614.0,0.05001839]
[1765998825029,0.01872,85636.0,85616.0,0.05001839]
[1765998825437,0.01872,85636.0,85615.0,0.05001839]
[1765998826321,0.01872,85636.0,85614.0,0.05001839]
[1765998826523,0.01872,85636.0,85617.0,1.0]
[1765998826765,0.01872,85636.0,85618.0,0.05001839]
[1765998826970,0.01872,85636.0,85616.0,0.05001839]
[1765998827229,0.01872,85636.0,85608.0,0.51397]
[1765998827429,0.0907,85634.0,85615.0,0.001]
[1765998827652,0.0907,85634.0,85602.0,0.0151275]
[1765998827653,0.48535,85633.0,85602.0,0.0151275]
[1765998827859,0.01872,85636.0,85603.0,1.0]
[1765998828089,0.0907,85634.0,85618.0,0.001]
[1765998828283,0.01872,85636.0,85618.0,0.001]
[1765998828284,0.01087003,85633.0,85618.0,0.001]
[1765998828489,0.73114,85628.0,85595.0,0.42093]
[1765998828663,0.82184,85623.0,85595.0,0.42093]
[1765998828864,0.48535,85613.0,85584.0,1.0]
[1765998829093,0.0907,85617.0,85592.0,0.06545076]
[1765998829313,0.01088321,85616.0,85592.0,0.06545076]
[1765998829636,0.01872,85622.0,85583.0,0.42093]
[1765998829637,0.57605,85613.0,85583.0,0.42093]
[1765998829840,0.01872,85622.0,85590.0,0.06545076]
[1765998829841,0.0907,85610.0,85590.0,0.06545076]
[1765998829983,0.01872,85609.0,85590.0,0.06545076]
[1765998830391,0.01872,85609.0,85584.0,0.05001839]
[1765998830595,0.73114,85606.0,85587.0,0.05001839]
[1765998831017,0.73114,85606.0,85598.0,0.00025864]
[1765998831374,0.73114,85606.0,85579.0,0.51397]
[1765998831375,0.48535,85607.0,85584.0,0.05001839]
[1765998831584,0.48535,85607.0,85574.0,0.06545076]
[1765998831585,0.0907,85599.0,85574.0,0.06545076]
[1765998831842,0.0907,85600.0,85575.0,0.05001839]
[1765998832030,0.01088592,85599.0,85561.0,0.51397]
[1765998832239,0.01088592,85598.0,85565.0,0.06545076]
[1765998832451,0.57605,85593.0,85565.0,0.06545076]
[1765998832679,0.73114,85583.0,85553.0,0.05001839]
[1765998832939,0.73114,85583.0,85556.0,0.51397]
[1765998832940,0.01872,85582.0,85556.0,0.51397]
[1765998833174,0.01872,85582.0,85557.0,0.05001839]
[1765998833428,0.01872,85582.0,85556.0,0.51397]
[1765998833429,0.01872,85582.0,85556.0,0.05001839]
[1765998833659,0.01872,85582.0,85566.0,0.05001839]
[1765998834681,0.02033287,85582.0,85552.0,0.06545076]
[1765998834891,0.48535,85575.0,85552.0,0.06545076]
[1765998835095,1.21649,85574.0,85556.0,0.001]
[1765998835301,0.00161287,85574.0,85556.0,0.001]
[1765998835634,1.21649,85573.0,85556.0,0.001]
[1765998835876,1.21810287,85573.0,85556.0,0.001]
[1765998836401,1.21810287,85573.0,85553.0,0.05001839]
[1765998836602,1.21810287,85573.0,85566.0,0.001]
[1765998836968,0.00161287,85573.0,85555.0,0.05001839]
[1765998837300,0.00161287,85573.0,85557.0,0.05001839]
[1765998837621,0.00161287,85573.0,85555.0,0.05001839]
[1765998837798,0.00161287,85573.0,85566.0,0.001]
[1765998838170,0.00161287,85573.0,85555.0,0.11546915]
[1765998838723,0.00161287,85573.0,85544.0,0.56398839]
[1765998838950,0.00161287,85573.0,85555.0,0.05001839]
[1765998839134,0.00161287,85573.0,85572.0,8.7e-07]
[1765998840378,1.21649,85594.0,85572.0,8.7e-07]
[1765998840646,0.0296112,85593.0,85572.0,0.001]
[1765998840840,0.0108912,85592.0,85573.0,0.05001839]
[1765998841363,0.0108912,85592.0,85575.0,0.05001839]
[1765998841566,1.21649,85606.0,85584.0,0.05001839]
[1765998841852,0.05859781,85629.0,85583.0,0.06545076]
[1765998841853,0.02960881,85605.0,85586.0,0.47094839]
[1765998842059,0.02960881,85604.0,85586.0,0.47094839]
[1765998842268,0.48535,85610.0,85586.0,0.47094839]
[1765998842417,0.01088935,85609.0,85584.0,0.06170281]
[1765998842606,1.21649,85616.0,85583.0,0.31082636]
[1765998842607,0.02960935,85608.0,85590.0,0.47094839]
[1765998842802,0.01088875,85607.0,85583.0,0.06545076]
[1765998843048,0.01088958,85606.0,85571.0,0.05001839]
[1765998843283,1.21649,85604.0,85571.0,0.05001839]
[1765998843461,1.30719,85603.0,85586.0,0.001]
[1765998843668,1.30719,85603.0,85576.0,0.05001839]
[1765998843932,0.09231287,85603.0,85576.0,0.05001839]
[1765998844102,0.0907,85601.0,85571.0,0.05001839]
[1765998844265,0.73114,85598.0,85571.0,0.05001839]
[1765998845714,0.00161287,85601.0,85587.0,0.05001839]
[1765998846231,0.00161287,85601.0,85584.0,0.05001839]
[1765998846465,0.0907,85599.0,85582.0,0.05001839]
[1765998846595,0.73114,85598.0,85582.0,0.05001839]
[1765998846797,0.73114,85598.0,85570.0,0.06545076]
[1765998846798,0.0907,85599.0,85581.0,0.05001839]
[1765998847055,0.0907,85599.0,85587.0,0.001]
[1765998847256,0.0907,85599.0,85579.0,0.05001839]
[1765998847426,0.0907,85599.0,85586.0,0.05001839]
[1765998847631,0.00161287,85601.0,85586.0,0.05001839]
[1765998848215,0.0907,85607.0,85588.0,0.05001839]
[1765998848404,0.0907,85607.0,85590.0,0.05001839]
[1765998848705,0.01872,85611.0,85590.0,0.05001839]
[1765998849115,0.0907,85609.0,85575.0,0.05001839]
[1765998849323,0.48535,85610.0,85584.0,0.05001839]
[1765998849516,0.01872,85611.0,85584.0,0.05001839]
[1765998849517,0.0907,85609.0,85584.0,0.05001839]
[1765998849705,0.01872,85611.0,85577.0,0.05001839]
[1765998849706,0.0907,85607.0,85577.0,0.05001839]
[1765998849907,0.0907,85607.0,85590.0,0.001]
[1765998850108,0.0907,85607.0,85577.0,0.05001839]
[1765998850314,0.73162,85604.0,85577.0,0.01872]
[1765998850515,0.475,85599.0,85577.0,0.01872]
[1765998850656,0.68819,85597.0,85577.0,0.01872]
[1765998850914,0.68819,85596.0,85577.0,0.01872]
[1765998851324,0.10942,85611.0,85588.0,0.05001839]
[1765998851567,0.10942,85611.0,85590.0,0.05001839]
[1765998851765,1.16211,85610.0,85590.0,0.05001839]
[1765998851970,0.0907,85609.0,85590.0,0.05001839]
[1765998852183,0.001,85607.0,85592.0,0.47094839]
[1765998852340,0.09231287,85609.0,85594.0,0.05001839]
[1765998852765,0.00161287,85609.0,85593.0,0.05001839]
[1765998852974,0.0907,85607.0,85586.0,0.05001839]
[1765998853181,0.09231287,85607.0,85586.0,0.05001839]
[1765998853386,0.09231287,85607.0,85593.0,0.05001839]
[1765998853586,0.09231287,85607.0,85590.0,0.05001839]
[1765998854004,0.47392,85606.0,85586.0,0.05001839]
[1765998854220,0.47392,85605.0,85588.0,0.01872]
[1765998854383,0.47553287,85605.0,85593.0,0.002]
[1765998854582,0.00161287,85605.0,85593.0,0.002]
[1765998855373,0.00161287,85605.0,85594.0,0.05001839]
[1765998855581,0.00181593,85613.0,85599.0,0.05001839]
[1765998855735,0.47392,85631.0,85603.0,0.52865839]
[1765998855950,0.01090532,85630.0,85603.0,0.52865839]
[1765998856585,0.01090532,85630.0,85607.0,0.05001839]
[1765998857175,1.17401532,85630.0,85607.0,0.05001839]
[1765998857380,0.01090532,85629.0,85607.0,0.05001839]
[1765998858659,0.01090532,85629.0,85612.0,0.05001839]
[1765998858860,0.002,85630.0,85614.0,0.05001839]
[1765998859066,0.00161287,85630.0,85616.0,0.05001839]
[1765998859272,1.16211,85628.0,85611.0,0.01872]
[1765998859445,0.68819,85627.0,85611.0,0.01872]
[1765998859672,0.68980287,85627.0,85604.0,0.05001839]
[1765998859859,0.68980287,85627.0,85603.0,0.01872]
[1765998859860,0.00161287,85627.0,85603.0,0.01872]
[1765998860063,0.68819,85626.0,85602.0,0.05001839]
[1765998860261,0.00161287,85626.0,85604.0,0.05001839]
[1765998860468,0.00161287,85626.0,85604.0,0.47094839]
[1765998860811,0.68819,85624.0,85598.0,0.06545076]
[1765998861019,0.68819,85624.0,85597.0,0.0907]
[1765998861020,0.47392,85617.0,85597.0,0.05001839]
[1765998861187,1.16211,85612.0,85596.0,0.1499]
[1765998861404,1.16211,85612.0,85584.0,0.01872]
[1765998861405,1.16211,85611.0,85586.0,0.05001839]
[1765998861753,1.16372287,85611.0,85586.0,0.05001839]
[1765998862164,1.16372287,85611.0,85588.0,0.05001839]
[1765998862387,0.00161287,85611.0,85592.0,0.05001839]
[1765998862596,0.001,85626.0,85599.0,0.05001839]
[1765998862800,0.01872,85619.0,85600.0,0.92594839]
[1765998863005,0.001,85611.0,85600.0,0.92756126]
[1765998863213,0.001,85611.0,85600.0,0.05163126]
[1765998863439,0.68819,85616.0,85600.0,0.05163126]
[1765998863661,1.16211,85615.0,85600.0,0.05163126]
[1765998864015,1.16211,85618.0,85600.0,0.05163126]
[1765998865654,0.68819,85618.0,85600.0,0.05163126]
[1765998865858,1.17301624,85617.0,85600.0,0.05163126]
[1765998866084,1.16211,85617.0,85600.0,0.05163126]
[1765998866713,0.01872,85619.0,85600.0,0.05163126]
[1765998866935,0.01872,85619.0,85589.0,0.87593]
[1765998866936,0.0907,85616.0,85572.0,0.00181723]
[1765998867171,0.02296911,85615.0,85572.0,0.00181723]
[1765998867416,0.01872,85619.0,85572.0,0.00181723]
[1765998867417,0.0907,85612.0,85572.0,0.00181723]
[1765998867631,0.01872,85619.0,85572.0,0.00181723]
[1765998867632,0.0907,85609.0,85572.0,0.00181723]
[1765998867842,0.0907,85606.0,85572.0,0.00181723]
[1765998868057,0.0907,85606.0,85573.0,0.05001839]
[1765998868058,0.02963023,85605.0,85573.0,0.05001839]
[1765998868267,0.0907,85602.0,85573.0,0.05001839]
[1765998868468,0.0907,85599.0,85572.0,0.00181723]
[1765998868673,0.47392,85597.0,85572.0,0.00181723]
[1765998868888,0.68819,85604.0,85572.0,0.00181723]
[1765998868889,0.47392,85595.0,85572.0,0.00181723]
[1765998869099,0.47392,85593.0,85572.0,0.00181723]
[1765998869323,0.50355023,85592.0,85573.0,0.05001839]
[1765998869529,0.68819,85604.0,85577.0,0.42093]
[1765998869758,0.02964529,85603.0,85588.0,0.05001839]
[1765998870013,0.01092529,85602.0,85588.0,0.92756839]